[Event "Titled Tuesday Blitz June 20 Late 2023"]
[White "Ladron De Guevara Pinto, Paolo"]
[Black "Barrionuevo, Pablo"]
[WhiteFideId "2290847"]
[BlackFideId "110566"]
[WhiteElo "2398"]
[BlackElo "2212"]
[Result "0-1"]
[Round "1"]
[TimeControl "180+2"]
[Date "2023.06.20"]
[WhiteClock "0:00:00"]
[BlackClock "0:00:18"]
[Board "167"]

1. Nf3 {[%clk 0:03:00]}  d5 {[%clk 0:02:58]} 2. g3 {[%clk 0:03:00]}  e6 {[%clk 0:02:58]} 3. Bg2 {[%clk 0:03:00]}  Nf6 {[%clk 0:02:59]} 4. O-O {[%clk 0:03:00]}  Be7 {[%clk 0:03:00]} 5. d3 {[%clk 0:03:00]}  a5 {[%clk 0:02:58]} 6. Nbd2 {[%clk 0:02:58]}  a4 {[%clk 0:02:57]} 7. a3 {[%clk 0:02:59]}  O-O {[%clk 0:02:55]} 8. e4 {[%clk 0:02:59]}  c5 {[%clk 0:02:55]} 9. Re1 {[%clk 0:02:57]}  Nc6 {[%clk 0:02:53]} 10. e5 {[%clk 0:02:58]}  Ne8 {[%clk 0:02:43]} 11. Nf1 {[%clk 0:02:57]}  b5 {[%clk 0:02:42]} 12. h4 {[%clk 0:02:56]}  Nc7 {[%clk 0:02:42]} 13. h5 {[%clk 0:02:54]}  b4 {[%clk 0:02:41]} 14. h6 {[%clk 0:02:52]}  g6 {[%clk 0:02:41]} 15. N1h2 {[%clk 0:02:50]}  Nb5 {[%clk 0:02:41]} 16. Be3 {[%clk 0:02:17]}  Nbd4 {[%clk 0:02:31]} 17. Nxd4 {[%clk 0:02:08]}  cxd4 {[%clk 0:02:29]} 18. Bf4 {[%clk 0:02:05]}  Rb8 {[%clk 0:02:17]} 19. Qc1 {[%clk 0:01:50]}  Qb6 {[%clk 0:02:06]} 20. Bg5 {[%clk 0:01:49]}  Qd8 {[%clk 0:01:59]} 21. Bxe7 {[%clk 0:01:45]}  Qxe7 {[%clk 0:01:58]} 22. Nf3 {[%clk 0:01:11]}  Ba6 {[%clk 0:01:41]} 23. Qf4 {[%clk 0:01:07]}  Rfc8 {[%clk 0:01:41]} 24. Rec1 {[%clk 0:00:45]}  b3 {[%clk 0:01:29]} 25. Bf1 {[%clk 0:00:36]}  bxc2 {[%clk 0:01:01]} 26. Rxc2 {[%clk 0:00:36]}  Na5 {[%clk 0:01:02]} 27. Rac1 {[%clk 0:00:31]}  Rxc2 {[%clk 0:00:35]} 28. Rxc2 {[%clk 0:00:28]}  Nb3 {[%clk 0:00:33]} 29. Nxd4 {[%clk 0:00:25]}  Nxd4 {[%clk 0:00:33]} 30. Qxd4 {[%clk 0:00:26]}  Bb5 {[%clk 0:00:31]} 31. Qc5 {[%clk 0:00:15]}  Qxc5 {[%clk 0:00:29]} 32. Rxc5 {[%clk 0:00:15]}  Be8 {[%clk 0:00:29]} 33. Rc2 {[%clk 0:00:13]}  Kf8 {[%clk 0:00:28]} 34. f4 {[%clk 0:00:14]}  Ke7 {[%clk 0:00:29]} 35. Kf2 {[%clk 0:00:10]}  Rb7 {[%clk 0:00:23]} 36. Ke3 {[%clk 0:00:11]}  Bb5 {[%clk 0:00:20]} 37. Kd4 {[%clk 0:00:09]}  Kd7 {[%clk 0:00:20]} 38. Be2 {[%clk 0:00:09]}  Ba6 {[%clk 0:00:20]} 39. Ke3 {[%clk 0:00:09]}  Bb5 {[%clk 0:00:20]} 40. Kd2 {[%clk 0:00:09]}  Ba6 {[%clk 0:00:20]} 41. Kc1 {[%clk 0:00:09]}  Bb5 {[%clk 0:00:20]} 42. Rc3 {[%clk 0:00:09]}  Ba6 {[%clk 0:00:20]} 43. Kc2 {[%clk 0:00:09]}  Bb5 {[%clk 0:00:21]} 44. Bd1 {[%clk 0:00:08]}  Bc6 {[%clk 0:00:20]} 45. Kc1 {[%clk 0:00:07]}  Bb5 {[%clk 0:00:20]} 46. d4 {[%clk 0:00:06]}  Ra7 {[%clk 0:00:18]} 47. Rc5 {[%clk 0:00:00]}  Bc4 {[%clk 0:00:18]} 0-1


[Site "https://www.chess.com"]

[Event "Titled Tuesday Blitz June 20 Late 2023"]
[White "Kopacz, Grzegorz"]
[Black "Bagrationi, Alexander"]
[WhiteFideId "1109880"]
[BlackFideId "14104954"]
[WhiteElo "2037"]
[BlackElo "2366"]
[Result "1-0"]
[Round "1"]
[TimeControl "180+2"]
[Date "2023.06.20"]
[WhiteClock "0:00:07"]
[BlackClock "0:00:08"]
[Board "168"]

1. d4 {[%clk 0:02:59]}  c5 {[%clk 0:02:58]} 2. d5 {[%clk 0:03:00]}  g6 {[%clk 0:02:57]} 3. c4 {[%clk 0:02:59]}  Bg7 {[%clk 0:02:58]} 4. Nc3 {[%clk 0:03:00]}  Nf6 {[%clk 0:02:54]} 5. e4 {[%clk 0:02:59]}  d6 {[%clk 0:02:55]} 6. Nf3 {[%clk 0:02:56]}  O-O {[%clk 0:02:53]} 7. Be2 {[%clk 0:02:56]}  Na6 {[%clk 0:02:54]} 8. O-O {[%clk 0:02:56]}  Nc7 {[%clk 0:02:54]} 9. h3 {[%clk 0:02:55]}  a6 {[%clk 0:02:55]} 10. a4 {[%clk 0:02:55]}  Rb8 {[%clk 0:02:55]} 11. a5 {[%clk 0:02:51]}  b5 {[%clk 0:02:51]} 12. axb6 {[%clk 0:02:49]}  Rxb6 {[%clk 0:02:51]} 13. Qc2 {[%clk 0:02:33]}  e6 {[%clk 0:02:50]} 14. Bf4 {[%clk 0:02:27]}  exd5 {[%clk 0:02:44]} 15. cxd5 {[%clk 0:02:20]}  Nh5 {[%clk 0:02:44]} 16. Bh2 {[%clk 0:02:19]}  Nb5 {[%clk 0:02:43]} 17. Nd2 {[%clk 0:02:13]}  Nd4 {[%clk 0:02:40]} 18. Qd1 {[%clk 0:01:50]}  Nxe2+ {[%clk 0:02:12]} 19. Nxe2 {[%clk 0:01:51]}  Rxb2 {[%clk 0:02:08]} 20. Nc4 {[%clk 0:01:41]}  Rb4 {[%clk 0:02:08]} 21. Ra4 {[%clk 0:01:39]}  Bd7 {[%clk 0:01:31]} 22. Rxb4 {[%clk 0:01:38]}  cxb4 {[%clk 0:01:31]} 23. Bxd6 {[%clk 0:01:36]}  Re8 {[%clk 0:01:31]} 24. e5 {[%clk 0:01:20]}  Bb5 {[%clk 0:01:21]} 25. Ne3 {[%clk 0:00:53]}  Bxe5 {[%clk 0:01:09]} 26. Bxb4 {[%clk 0:00:50]}  Nf4 {[%clk 0:01:04]} 27. Nxf4 {[%clk 0:00:47]}  Bxf1 {[%clk 0:01:04]} 28. Nxg6 {[%clk 0:00:26]}  hxg6 {[%clk 0:00:56]} 29. Qxf1 {[%clk 0:00:24]}  Bd4 {[%clk 0:00:53]} 30. Ng4 {[%clk 0:00:21]}  a5 {[%clk 0:00:48]} 31. Bd2 {[%clk 0:00:20]}  Qxd5 {[%clk 0:00:47]} 32. Qa6 {[%clk 0:00:19]}  Re6 {[%clk 0:00:44]} 33. Qc8+ {[%clk 0:00:18]}  Kg7 {[%clk 0:00:44]} 34. Bh6+ {[%clk 0:00:17]}  Kh7 {[%clk 0:00:42]} 35. Qf8 {[%clk 0:00:17]}  Re1+ {[%clk 0:00:28]} 36. Kh2 {[%clk 0:00:17]}  Be5+ {[%clk 0:00:26]} 37. f4 {[%clk 0:00:15]}  Bd4 {[%clk 0:00:22]} 38. Bg5 {[%clk 0:00:14]}  Bg1+ {[%clk 0:00:20]} 39. Kg3 {[%clk 0:00:14]}  Bd4 {[%clk 0:00:06]} 40. Qh6+ {[%clk 0:00:12]}  Kg8 {[%clk 0:00:06]} 41. Nf6+ {[%clk 0:00:12]}  Bxf6 {[%clk 0:00:06]} 42. Bxf6 {[%clk 0:00:13]}  Re3+ {[%clk 0:00:04]} 43. Kh2 {[%clk 0:00:12]}  Rxh3+ {[%clk 0:00:02]} 44. Qxh3 {[%clk 0:00:12]}  Qh5 {[%clk 0:00:02]} 45. Qxh5 {[%clk 0:00:12]}  gxh5 {[%clk 0:00:03]} 46. Kg3 {[%clk 0:00:12]}  Kh7 {[%clk 0:00:04]} 47. Bb2 {[%clk 0:00:13]}  Kg6 {[%clk 0:00:04]} 48. Kh4 {[%clk 0:00:14]}  Kf5 {[%clk 0:00:04]} 49. g3 {[%clk 0:00:13]}  Kg6 {[%clk 0:00:04]} 50. Ba3 {[%clk 0:00:13]}  Kh6 {[%clk 0:00:04]} 51. Be7 {[%clk 0:00:12]}  a4 {[%clk 0:00:03]} 52. Ba3 {[%clk 0:00:12]}  Kg6 {[%clk 0:00:04]} 53. Bb4 {[%clk 0:00:12]}  f6 {[%clk 0:00:04]} 54. Ba3 {[%clk 0:00:12]}  f5 {[%clk 0:00:03]} 55. Bb4 {[%clk 0:00:11]}  Kh6 {[%clk 0:00:04]} 56. Bc5 {[%clk 0:00:09]}  Kg6 {[%clk 0:00:04]} 57. Bf8 {[%clk 0:00:08]}  Kf7 {[%clk 0:00:03]} 58. Bc5 {[%clk 0:00:07]}  Kg6 {[%clk 0:00:04]} 59. Kh3 {[%clk 0:00:07]}  Kf6 {[%clk 0:00:05]} 60. Kg2 {[%clk 0:00:07]}  Ke6 {[%clk 0:00:05]} 61. Kf3 {[%clk 0:00:06]}  Kd5 {[%clk 0:00:06]} 62. Bf8 {[%clk 0:00:07]}  Kd4 {[%clk 0:00:05]} 63. Be7 {[%clk 0:00:06]}  Kd3 {[%clk 0:00:06]} 64. Bd6 {[%clk 0:00:05]}  Kd4 {[%clk 0:00:06]} 65. Be7 {[%clk 0:00:05]}  Kd3 {[%clk 0:00:07]} 66. Kg2 {[%clk 0:00:04]}  Ke3 {[%clk 0:00:06]} 67. Kh3 {[%clk 0:00:04]}  Kf3 {[%clk 0:00:06]} 68. Kh4 {[%clk 0:00:05]}  Kg2 {[%clk 0:00:06]} 69. Kxh5 {[%clk 0:00:03]}  Kxg3 {[%clk 0:00:06]} 70. Kg5 {[%clk 0:00:04]}  Kf3 {[%clk 0:00:07]} 71. Kxf5 {[%clk 0:00:05]}  a3 {[%clk 0:00:07]} 72. Bxa3 {[%clk 0:00:04]}  Ke3 {[%clk 0:00:08]} 73. Ke5 {[%clk 0:00:05]}  Kd3 {[%clk 0:00:09]} 74. f5 {[%clk 0:00:06]}  Kc4 {[%clk 0:00:08]} 75. f6 {[%clk 0:00:07]} 1-0


[Site "https://www.chess.com"]

[Event "Titled Tuesday Blitz June 20 Late 2023"]
[White "Novik, Maxim"]
[Black "KSho99"]
[WhiteFideId "4102924"]
[WhiteElo "2287"]
[BlackElo "2218"]
[Result "1-0"]
[Round "1"]
[TimeControl "180+2"]
[Date "2023.06.20"]
[WhiteClock "0:00:13"]
[BlackClock "0:00:00"]
[Board "169"]

1. c4 {[%clk 0:03:00]}  Nf6 {[%clk 0:02:57]} 2. Nc3 {[%clk 0:03:00]}  g6 {[%clk 0:02:54]} 3. d4 {[%clk 0:02:59]}  Bg7 {[%clk 0:02:53]} 4. e4 {[%clk 0:03:00]}  d6 {[%clk 0:02:53]} 5. Be2 {[%clk 0:02:59]}  O-O {[%clk 0:02:51]} 6. Nf3 {[%clk 0:03:00]}  e5 {[%clk 0:02:48]} 7. O-O {[%clk 0:03:00]}  exd4 {[%clk 0:02:44]} 8. Nxd4 {[%clk 0:02:59]}  Re8 {[%clk 0:02:45]} 9. f3 {[%clk 0:03:00]}  c6 {[%clk 0:02:43]} 10. Bg5 {[%clk 0:02:57]}  Qb6 {[%clk 0:02:39]} 11. Na4 {[%clk 0:02:56]}  Qa5 {[%clk 0:02:21]} 12. Bh4 {[%clk 0:02:56]}  d5 {[%clk 0:01:58]} 13. exd5 {[%clk 0:02:51]}  cxd5 {[%clk 0:01:55]} 14. c5 {[%clk 0:02:47]}  Bd7 {[%clk 0:01:47]} 15. Nc3 {[%clk 0:02:33]}  Qxc5 {[%clk 0:01:41]} 16. Bf2 {[%clk 0:02:34]}  Qb4 {[%clk 0:01:29]} 17. a3 {[%clk 0:02:28]}  Qe7 {[%clk 0:01:17]} 18. Re1 {[%clk 0:02:22]}  Nc6 {[%clk 0:01:13]} 19. Bf1 {[%clk 0:02:18]}  Qf8 {[%clk 0:01:04]} 20. Ncb5 {[%clk 0:02:18]}  Rxe1 {[%clk 0:00:59]} 21. Qxe1 {[%clk 0:02:17]}  a6 {[%clk 0:00:52]} 22. Nc3 {[%clk 0:02:09]}  Re8 {[%clk 0:00:52]} 23. Qd2 {[%clk 0:02:09]}  Qd6 {[%clk 0:00:51]} 24. Rd1 {[%clk 0:02:08]}  Nxd4 {[%clk 0:00:45]} 25. Bxd4 {[%clk 0:02:07]}  Bc6 {[%clk 0:00:43]} 26. g3 {[%clk 0:02:01]}  Qd7 {[%clk 0:00:42]} 27. Kg2 {[%clk 0:01:59]}  Qf5 {[%clk 0:00:42]} 28. h3 {[%clk 0:01:49]}  Qc8 {[%clk 0:00:41]} 29. g4 {[%clk 0:01:46]}  Qc7 {[%clk 0:00:39]} 30. Ne2 {[%clk 0:01:41]}  Nd7 {[%clk 0:00:25]} 31. Bxg7 {[%clk 0:01:33]}  Kxg7 {[%clk 0:00:25]} 32. Nd4 {[%clk 0:01:31]}  Kg8 {[%clk 0:00:23]} 33. Re1 {[%clk 0:01:26]}  Rxe1 {[%clk 0:00:21]} 34. Qxe1 {[%clk 0:01:26]}  Qe5 {[%clk 0:00:21]} 35. Qd2 {[%clk 0:01:24]}  Nc5 {[%clk 0:00:19]} 36. f4 {[%clk 0:00:46]}  Qe4+ {[%clk 0:00:17]} 37. Kg3 {[%clk 0:00:43]}  Ne6 {[%clk 0:00:10]} 38. Nxe6 {[%clk 0:00:35]}  Qxe6 {[%clk 0:00:05]} 39. Bg2 {[%clk 0:00:31]}  Qd6 {[%clk 0:00:03]} 40. Qd4 {[%clk 0:00:29]}  Qe6 {[%clk 0:00:03]} 41. Bf3 {[%clk 0:00:29]}  Qe7 {[%clk 0:00:03]} 42. g5 {[%clk 0:00:26]}  Qf8 {[%clk 0:00:03]} 43. h4 {[%clk 0:00:26]}  Qg7 {[%clk 0:00:02]} 44. Qxg7+ {[%clk 0:00:21]}  Kxg7 {[%clk 0:00:03]} 45. Kf2 {[%clk 0:00:22]}  Kf8 {[%clk 0:00:03]} 46. Ke3 {[%clk 0:00:22]}  Ke7 {[%clk 0:00:04]} 47. Kd4 {[%clk 0:00:22]}  Kd6 {[%clk 0:00:04]} 48. h5 {[%clk 0:00:21]}  b6 {[%clk 0:00:04]} 49. h6 {[%clk 0:00:19]}  a5 {[%clk 0:00:03]} 50. Bg2 {[%clk 0:00:16]}  Bb7 {[%clk 0:00:03]} 51. Bh3 {[%clk 0:00:14]}  Ba6 {[%clk 0:00:03]} 52. f5 {[%clk 0:00:13]}  Bc4 {[%clk 0:00:03]} 53. fxg6 {[%clk 0:00:13]}  fxg6 {[%clk 0:00:03]} 54. Bf5 {[%clk 0:00:13]}  gxf5 {[%clk 0:00:00]} 55. g6 {[%clk 0:00:13]} 1-0


[Site "https://www.chess.com"]

[Event "Titled Tuesday Blitz June 20 Late 2023"]
[White "Vila Dupla, Aurelio"]
[Black "Perez, Maximiliano"]
[WhiteFideId "2203383"]
[BlackFideId "117234"]
[WhiteElo "2009"]
[BlackElo "2334"]
[Result "0-1"]
[Round "1"]
[TimeControl "180+2"]
[Date "2023.06.20"]
[WhiteClock "0:01:05"]
[BlackClock "0:02:00"]
[Board "170"]

1. Nf3 {[%clk 0:02:59]}  Nf6 {[%clk 0:02:59]} 2. d4 {[%clk 0:02:56]}  e6 {[%clk 0:02:59]} 3. a3 {[%clk 0:02:44]}  b6 {[%clk 0:02:55]} 4. g3 {[%clk 0:02:42]}  Bb7 {[%clk 0:02:55]} 5. Bg2 {[%clk 0:02:43]}  Be7 {[%clk 0:02:56]} 6. O-O {[%clk 0:02:42]}  O-O {[%clk 0:02:56]} 7. c4 {[%clk 0:02:41]}  c5 {[%clk 0:02:55]} 8. Nc3 {[%clk 0:02:40]}  cxd4 {[%clk 0:02:54]} 9. Qxd4 {[%clk 0:02:40]}  Nc6 {[%clk 0:02:53]} 10. Qf4 {[%clk 0:02:37]}  Rc8 {[%clk 0:02:53]} 11. Rd1 {[%clk 0:02:18]}  Na5 {[%clk 0:02:38]} 12. Nd2 {[%clk 0:02:06]}  Bxg2 {[%clk 0:02:39]} 13. Kxg2 {[%clk 0:02:06]}  d5 {[%clk 0:02:36]} 14. cxd5 {[%clk 0:02:03]}  Nxd5 {[%clk 0:02:37]} 15. Nxd5 {[%clk 0:02:02]}  Qxd5+ {[%clk 0:02:38]} 16. Qf3 {[%clk 0:01:59]}  Rfd8 {[%clk 0:02:33]} 17. e4 {[%clk 0:01:55]}  Qd3 {[%clk 0:02:22]} 18. b4 {[%clk 0:01:33]}  Nb3 {[%clk 0:02:10]} 19. Nxb3 {[%clk 0:01:21]}  Qxf3+ {[%clk 0:02:05]} 20. Kxf3 {[%clk 0:01:21]}  Rxd1 {[%clk 0:02:05]} 21. Be3 {[%clk 0:01:16]}  Rxa1 {[%clk 0:02:03]} 22. Nxa1 {[%clk 0:01:16]}  Rc3 {[%clk 0:02:04]} 23. a4 {[%clk 0:01:05]}  Bxb4 {[%clk 0:02:00]} 0-1


[Site "https://www.chess.com"]

[Event "Titled Tuesday Blitz June 20 Late 2023"]
[White "Sreyas Payyappat"]
[Black "Cueto, Jonny"]
[WhiteFideId "46674969"]
[BlackFideId "3300145"]
[WhiteElo "2043"]
[BlackElo "2240"]
[Result "1-0"]
[Round "1"]
[TimeControl "180+2"]
[Date "2023.06.20"]
[WhiteClock "0:01:14"]
[BlackClock "0:00:48"]
[Board "171"]

1. e4 {[%clk 0:03:00]}  e6 {[%clk 0:02:49]} 2. d4 {[%clk 0:02:55]}  d5 {[%clk 0:02:50]} 3. Nc3 {[%clk 0:02:54]}  Nf6 {[%clk 0:02:49]} 4. Bg5 {[%clk 0:02:54]}  Be7 {[%clk 0:02:49]} 5. e5 {[%clk 0:02:53]}  Nfd7 {[%clk 0:02:50]} 6. Bxe7 {[%clk 0:02:54]}  Qxe7 {[%clk 0:02:51]} 7. f4 {[%clk 0:02:53]}  a6 {[%clk 0:02:51]} 8. Qg4 {[%clk 0:02:52]}  O-O {[%clk 0:02:47]} 9. O-O-O {[%clk 0:02:51]}  c5 {[%clk 0:02:47]} 10. Nf3 {[%clk 0:02:51]}  b5 {[%clk 0:02:45]} 11. Bd3 {[%clk 0:02:43]}  f5 {[%clk 0:02:27]} 12. exf6 {[%clk 0:02:16]}  Nxf6 {[%clk 0:02:27]} 13. Qh4 {[%clk 0:02:15]}  Nc6 {[%clk 0:02:08]} 14. Rhe1 {[%clk 0:02:00]}  c4 {[%clk 0:02:01]} 15. Nxd5 {[%clk 0:01:51]}  Nxd5 {[%clk 0:01:28]} 16. Qxh7+ {[%clk 0:01:15]}  Kf7 {[%clk 0:00:48]} 17. Qh5+ {[%clk 0:01:14]} 1-0


[Site "https://www.chess.com"]

[Event "Titled Tuesday Blitz June 20 Late 2023"]
[White "Taranenko, Evgueniy"]
[Black "O`Gorman, Tom"]
[WhiteFideId "14122138"]
[BlackFideId "2508249"]
[WhiteElo "2101"]
[BlackElo "2299"]
[Result "1-0"]
[Round "1"]
[TimeControl "180+2"]
[Date "2023.06.20"]
[WhiteClock "0:00:19"]
[BlackClock "0:00:09"]
[Board "172"]

1. e4 {[%clk 0:02:50]}  e5 {[%clk 0:02:58]} 2. Nf3 {[%clk 0:02:46]}  Nf6 {[%clk 0:02:54]} 3. Nxe5 {[%clk 0:02:45]}  d6 {[%clk 0:02:54]} 4. Nf3 {[%clk 0:02:45]}  Nxe4 {[%clk 0:02:55]} 5. Nc3 {[%clk 0:02:44]}  Nxc3 {[%clk 0:02:54]} 6. dxc3 {[%clk 0:02:45]}  Be7 {[%clk 0:02:54]} 7. Bd3 {[%clk 0:02:44]}  O-O {[%clk 0:02:55]} 8. Be3 {[%clk 0:02:43]}  Be6 {[%clk 0:02:49]} 9. h4 {[%clk 0:02:43]}  h6 {[%clk 0:02:45]} 10. Qd2 {[%clk 0:02:42]}  Bf6 {[%clk 0:02:39]} 11. Bxh6 {[%clk 0:02:17]}  gxh6 {[%clk 0:02:40]} 12. Qxh6 {[%clk 0:02:17]}  Re8 {[%clk 0:02:25]} 13. Bh7+ {[%clk 0:02:09]}  Kh8 {[%clk 0:02:24]} 14. O-O-O {[%clk 0:02:07]}  Bg7 {[%clk 0:02:20]} 15. Qh5 {[%clk 0:02:07]}  Qf6 {[%clk 0:02:18]} 16. Ng5 {[%clk 0:01:59]}  Qh6 {[%clk 0:02:09]} 17. Qf3 {[%clk 0:01:59]}  Nc6 {[%clk 0:02:07]} 18. Bf5 {[%clk 0:01:48]}  Ne5 {[%clk 0:02:01]} 19. Qf4 {[%clk 0:01:41]}  Bxf5 {[%clk 0:01:52]} 20. Qxf5 {[%clk 0:01:41]}  Qg6 {[%clk 0:01:52]} 21. Qf4 {[%clk 0:01:34]}  f6 {[%clk 0:01:49]} 22. Kb1 {[%clk 0:01:08]}  fxg5 {[%clk 0:01:42]} 23. hxg5+ {[%clk 0:01:09]}  Kg8 {[%clk 0:01:42]} 24. Qh4 {[%clk 0:01:09]}  b5 {[%clk 0:01:35]} 25. f4 {[%clk 0:01:08]}  Nc4 {[%clk 0:01:33]} 26. g4 {[%clk 0:01:08]}  Re2 {[%clk 0:00:50]} 27. f5 {[%clk 0:01:06]}  Qf7 {[%clk 0:00:50]} 28. f6 {[%clk 0:00:49]}  Qg6 {[%clk 0:00:49]} 29. Rd3 {[%clk 0:00:46]}  Bf8 {[%clk 0:00:44]} 30. Qh8+ {[%clk 0:00:32]}  Kf7 {[%clk 0:00:44]} 31. Rh7+ {[%clk 0:00:32]}  Ke6 {[%clk 0:00:38]} 32. Rh1 {[%clk 0:00:22]}  Qxg5 {[%clk 0:00:34]} 33. Qh7 {[%clk 0:00:17]}  Ne5 {[%clk 0:00:29]} 34. Rd4 {[%clk 0:00:15]}  Qxf6 {[%clk 0:00:26]} 35. Rc1 {[%clk 0:00:15]}  Qg6 {[%clk 0:00:23]} 36. Qh3 {[%clk 0:00:15]}  Be7 {[%clk 0:00:22]} 37. g5+ {[%clk 0:00:15]}  Qf5 {[%clk 0:00:21]} 38. Qh1 {[%clk 0:00:15]}  Rg8 {[%clk 0:00:19]} 39. Qd5+ {[%clk 0:00:16]}  Kd7 {[%clk 0:00:18]} 40. Qxg8 {[%clk 0:00:17]}  Qxg5 {[%clk 0:00:18]} 41. Qd5 {[%clk 0:00:17]}  Qf6 {[%clk 0:00:16]} 42. Qxb5+ {[%clk 0:00:17]}  c6 {[%clk 0:00:16]} 43. Qxe2 {[%clk 0:00:18]}  Qe6 {[%clk 0:00:16]} 44. Rcd1 {[%clk 0:00:18]}  Bf6 {[%clk 0:00:14]} 45. c4 {[%clk 0:00:19]}  Ke7 {[%clk 0:00:15]} 46. Re4 {[%clk 0:00:19]}  c5 {[%clk 0:00:14]} 47. Re1 {[%clk 0:00:19]}  Qf5 {[%clk 0:00:15]} 48. Rd1 {[%clk 0:00:19]}  Kd7 {[%clk 0:00:15]} 49. b3 {[%clk 0:00:20]}  Nc6 {[%clk 0:00:16]} 50. Qd3 {[%clk 0:00:19]}  Nd4 {[%clk 0:00:14]} 51. c3 {[%clk 0:00:19]}  Nc6 {[%clk 0:00:13]} 52. Qxd6+ {[%clk 0:00:19]}  Kc8 {[%clk 0:00:09]} 53. Qxc6+ {[%clk 0:00:19]} 1-0


[Site "https://www.chess.com"]

[Event "Titled Tuesday Blitz June 20 Late 2023"]
[White "WindWhistler11"]
[Black "Thiel, Thomas"]
[BlackFideId "4615964"]
[WhiteElo "2549"]
[BlackElo "2207"]
[Result "1-0"]
[Round "1"]
[TimeControl "180+2"]
[Date "2023.06.20"]
[WhiteClock "0:00:17"]
[BlackClock "0:00:00"]
[Board "173"]

1. Nf3 {[%clk 0:02:59]}  Nf6 {[%clk 0:02:57]} 2. c4 {[%clk 0:02:59]}  g6 {[%clk 0:02:55]} 3. g3 {[%clk 0:02:58]}  Bg7 {[%clk 0:02:54]} 4. Bg2 {[%clk 0:02:58]}  O-O {[%clk 0:02:52]} 5. O-O {[%clk 0:02:58]}  c6 {[%clk 0:02:52]} 6. d3 {[%clk 0:02:56]}  d5 {[%clk 0:02:52]} 7. Qc2 {[%clk 0:02:54]}  Na6 {[%clk 0:02:48]} 8. a3 {[%clk 0:02:51]}  dxc4 {[%clk 0:02:45]} 9. Qxc4 {[%clk 0:02:48]}  Be6 {[%clk 0:02:44]} 10. Qc2 {[%clk 0:02:48]}  Qb6 {[%clk 0:02:42]} 11. Be3 {[%clk 0:02:33]}  Qa5 {[%clk 0:02:39]} 12. Nd4 {[%clk 0:02:29]}  Bd5 {[%clk 0:02:37]} 13. f3 {[%clk 0:02:23]}  e5 {[%clk 0:02:18]} 14. Nb3 {[%clk 0:02:22]}  Bxb3 {[%clk 0:02:17]} 15. Qxb3 {[%clk 0:02:22]}  Nd5 {[%clk 0:02:16]} 16. Bf2 {[%clk 0:02:17]}  Nc5 {[%clk 0:02:11]} 17. Qc2 {[%clk 0:02:12]}  Ne6 {[%clk 0:02:10]} 18. e3 {[%clk 0:01:58]}  Rfd8 {[%clk 0:02:06]} 19. Nd2 {[%clk 0:01:55]}  Nb6 {[%clk 0:01:58]} 20. Rfd1 {[%clk 0:01:49]}  Qc5 {[%clk 0:01:54]} 21. Qb1 {[%clk 0:01:41]}  Qb5 {[%clk 0:01:50]} 22. Bf1 {[%clk 0:01:38]}  Na4 {[%clk 0:01:39]} 23. Nc4 {[%clk 0:01:32]}  Nb6 {[%clk 0:01:28]} 24. Qc2 {[%clk 0:01:28]}  Nxc4 {[%clk 0:01:25]} 25. dxc4 {[%clk 0:01:29]}  Qa5 {[%clk 0:01:23]} 26. b4 {[%clk 0:01:28]}  Qc7 {[%clk 0:01:20]} 27. Rxd8+ {[%clk 0:01:12]}  Rxd8 {[%clk 0:01:21]} 28. Rd1 {[%clk 0:01:12]}  Rxd1 {[%clk 0:01:16]} 29. Qxd1 {[%clk 0:01:13]}  c5 {[%clk 0:01:14]} 30. f4 {[%clk 0:01:04]}  Bf8 {[%clk 0:01:06]} 31. Be1 {[%clk 0:00:56]}  exf4 {[%clk 0:01:05]} 32. gxf4 {[%clk 0:00:56]}  cxb4 {[%clk 0:01:03]} 33. axb4 {[%clk 0:00:52]}  b6 {[%clk 0:01:01]} 34. Qd5 {[%clk 0:00:49]}  Qd6 {[%clk 0:00:54]} 35. Qxd6 {[%clk 0:00:41]}  Bxd6 {[%clk 0:00:55]} 36. Kg2 {[%clk 0:00:38]}  Bc7 {[%clk 0:00:54]} 37. Kf3 {[%clk 0:00:38]}  a5 {[%clk 0:00:54]} 38. bxa5 {[%clk 0:00:35]}  bxa5 {[%clk 0:00:55]} 39. Ke4 {[%clk 0:00:35]}  a4 {[%clk 0:00:52]} 40. Kd5 {[%clk 0:00:35]}  Bb6 {[%clk 0:00:48]} 41. Bb4 {[%clk 0:00:19]}  Bxe3 {[%clk 0:00:43]} 42. f5 {[%clk 0:00:19]}  gxf5 {[%clk 0:00:40]} 43. c5 {[%clk 0:00:20]}  Bc1 {[%clk 0:00:35]} 44. c6 {[%clk 0:00:19]}  a3 {[%clk 0:00:35]} 45. Bc4 {[%clk 0:00:19]}  Bb2 {[%clk 0:00:28]} 46. Kd6 {[%clk 0:00:18]}  Bc1 {[%clk 0:00:24]} 47. Kd7 {[%clk 0:00:17]}  Bf4 {[%clk 0:00:23]} 48. Bxa3 {[%clk 0:00:17]}  Bxh2 {[%clk 0:00:21]} 49. Bd6 {[%clk 0:00:17]}  Bxd6 {[%clk 0:00:00]} 50. Kxd6 {[%clk 0:00:17]} 1-0


[Site "https://www.chess.com"]

[Event "Titled Tuesday Blitz June 20 Late 2023"]
[White "Quirke, Jeffrey"]
[Black "Martin Carmona, Gaston Manuel"]
[WhiteFideId "2013029"]
[BlackFideId "22284567"]
[WhiteElo "2199"]
[BlackElo "2245"]
[Result "1-0"]
[Round "1"]
[TimeControl "180+2"]
[Date "2023.06.20"]
[WhiteClock "0:00:09"]
[BlackClock "0:01:11"]
[Board "174"]

1. e4 {[%clk 0:03:00]}  c5 {[%clk 0:02:57]} 2. Nc3 {[%clk 0:03:00]}  Nc6 {[%clk 0:02:57]} 3. f4 {[%clk 0:02:59]}  a6 {[%clk 0:02:52]} 4. a4 {[%clk 0:02:55]}  d6 {[%clk 0:02:49]} 5. Nf3 {[%clk 0:02:55]}  g6 {[%clk 0:02:49]} 6. Bc4 {[%clk 0:02:55]}  Bg7 {[%clk 0:02:48]} 7. d3 {[%clk 0:02:55]}  Nf6 {[%clk 0:02:48]} 8. O-O {[%clk 0:02:54]}  O-O {[%clk 0:02:48]} 9. Qe1 {[%clk 0:02:41]}  Bg4 {[%clk 0:02:44]} 10. e5 {[%clk 0:02:22]}  dxe5 {[%clk 0:02:09]} 11. fxe5 {[%clk 0:02:21]}  Ne8 {[%clk 0:02:09]} 12. Ng5 {[%clk 0:02:12]}  Nxe5 {[%clk 0:02:05]} 13. Qh4 {[%clk 0:01:37]}  h5 {[%clk 0:01:55]} 14. Be3 {[%clk 0:00:55]}  Nxc4 {[%clk 0:01:52]} 15. dxc4 {[%clk 0:00:55]}  Nf6 {[%clk 0:01:50]} 16. Bxc5 {[%clk 0:00:41]}  Qd2 {[%clk 0:01:50]} 17. Bxe7 {[%clk 0:00:28]}  Qe3+ {[%clk 0:01:50]} 18. Kh1 {[%clk 0:00:27]}  Qxe7 {[%clk 0:01:51]} 19. Nge4 {[%clk 0:00:23]}  Qxe4 {[%clk 0:01:47]} 20. Nxe4 {[%clk 0:00:22]}  Nxe4 {[%clk 0:01:48]} 21. Rae1 {[%clk 0:00:18]}  Nd2 {[%clk 0:01:47]} 22. Rf2 {[%clk 0:00:16]}  Nxc4 {[%clk 0:01:47]} 23. h3 {[%clk 0:00:17]}  Be6 {[%clk 0:01:38]} 24. Rxe6 {[%clk 0:00:14]}  fxe6 {[%clk 0:01:37]} 25. Rxf8+ {[%clk 0:00:14]}  Rxf8 {[%clk 0:01:37]} 26. Qxc4 {[%clk 0:00:15]}  Rf1+ {[%clk 0:01:37]} 27. Kh2 {[%clk 0:00:13]}  Be5+ {[%clk 0:01:37]} 28. g3 {[%clk 0:00:14]}  Rf2+ {[%clk 0:01:33]} 29. Kg1 {[%clk 0:00:14]}  Rf6 {[%clk 0:01:26]} 30. Qc8+ {[%clk 0:00:12]}  Kg7 {[%clk 0:01:27]} 31. Qxb7+ {[%clk 0:00:12]}  Kh6 {[%clk 0:01:27]} 32. Qxa6 {[%clk 0:00:12]}  Bxg3 {[%clk 0:01:26]} 33. Qd3 {[%clk 0:00:12]}  h4 {[%clk 0:01:24]} 34. a5 {[%clk 0:00:12]}  Rf5 {[%clk 0:01:17]} 35. a6 {[%clk 0:00:11]}  g5 {[%clk 0:01:17]} 36. Qd7 {[%clk 0:00:07]}  Rf6 {[%clk 0:01:14]} 37. a7 {[%clk 0:00:07]}  Bf2+ {[%clk 0:01:12]} 38. Kg2 {[%clk 0:00:07]}  Bxa7 {[%clk 0:01:13]} 39. Qxa7 {[%clk 0:00:08]}  Kg6 {[%clk 0:01:14]} 40. b4 {[%clk 0:00:08]}  Kf5 {[%clk 0:01:12]} 41. b5 {[%clk 0:00:08]}  e5 {[%clk 0:01:11]} 42. b6 {[%clk 0:00:09]} 1-0


[Site "https://www.chess.com"]